[Event "CRO-ch Youth U19 2020"]
[Site "Vinkovci"]
[Date "2020.08.01"]
[Round "5.12"]
[White "Birkic, Josip"]
[Black "Novosel, Marko"]
[Result "1-0"]
[ECO "D02"]
[WhiteElo "1984"]
[BlackElo "2147"]
[Annotator "ChessBase"]
[PlyCount "41"]
[EventDate "2020.07.28"]
[EventType "swiss"]
[EventCountry "CRO"]
[TimeControl "5400+30"]

1. d4 {[%emt 0:16:30]} Nf6 {[%emt 0:00:30]} 2. Bf4 {[%emt 0:00:00]} d5 {[%emt 0:00:00]} 3. e3 {[%emt 0:00:00]} Bf5 {[%emt 0:01:00]} 4. Nf3 {[%emt 0:00:30]} e6 {[%emt 0:00:30]} 5. Ne5 {[%emt 0:00:30]} Nbd7 {[%emt 0:02:30]} 6. g4 {[%emt 0:01:30]} Bg6 {[%emt 0:03:30]} 7. h4 {[%emt 0:00:00]} h6 {[%emt 0:03:30]} 8. Nxg6 {[%emt 0:00:00]} fxg6 {[%emt 0:00:00]} 9. Bd3 {[%emt 0:02:30]} Kf7 {[%emt 0:01:00]} 10. Qf3 {[%emt 0:00:30]} Be7 {[%emt 0:02:30]} 11. Rg1 {[%emt 0:02:30]} g5 {[%emt 0:00:30]} 12. hxg5 {[%emt 0:01:30]} hxg5 {[%emt 0:00:30]} 13. Bxg5 {[%emt 0:04:30]} c5 {[%emt 0:03:30]} 14. Nc3 {[%emt 0:11:30]} Rc8 {[%emt 0:01:30]} 15. Bf4 {[%emt 0:01:30]} g5 {[%emt 0:09:30]} 16. Bxg5 {[%emt 0:01:30]} Kg7 {[%emt 0:00:30]} 17. O-O-O {[%emt 0:03:30]} Qa5 {[%emt 0:01:30]} 18. Bh6+ {[%emt 0:12:30]} Kg8 {[%emt 0:00:30]} 19. g5 {[%emt 0:00:30]} Ne8 {[%emt 0:02:30]} 20. Nxd5 {[%emt 0:00:30]} Bd8 {[%emt 0:00:30]} 21. Nf6+ {[%emt 0:01:30]} 1-0

[Event "CRO-ch Youth U19 2020"]
[Site "Vinkovci"]
[Date "2020.08.01"]
[Round "5.13"]
[White "Ghersinich, Enrico"]
[Black "Purini, Bruno"]
[Result "1-0"]
[ECO "D34"]
[WhiteElo "2299"]
[BlackElo "2017"]
[Annotator "ChessBase"]
[PlyCount "43"]
[EventDate "2020.07.28"]
[EventType "swiss"]
[EventCountry "CRO"]
[TimeControl "5400+30"]

1. c4 {[%emt 0:00:30]} e6 {[%emt 0:00:30]} 2. Nf3 {[%emt 0:00:30]} Nf6 {[%emt 0:00:30]} 3. g3 {[%emt 0:00:00]} d5 {[%emt 0:03:30]} 4. Bg2 {[%emt 0:00:00]} c5 {[%emt 0:01:30]} 5. cxd5 {[%emt 0:01:30]} exd5 {[%emt 0:00:30]} 6. d4 {[%emt 0:00:00]} Nc6 {[%emt 0:04:30]} 7. O-O {[%emt 0:00:00]} cxd4 {[%emt 0:06:30]} 8. Nxd4 {[%emt 0:00:30]} Be7 {[%emt 0:06:30]} 9. Nc3 {[%emt 0:00:30]} O-O {[%emt 0:01:30]} 10. Bg5 {[%emt 0:00:30]} h6 {[%emt 0:01:30]} 11. Bf4 {[%emt 0:00:30]} Be6 {[%emt 0:06:30]} 12. Nxe6 {[%emt 0:02:30]} fxe6 {[%emt 0:00:30]} 13. Qb3 {[%emt 0:04:30]} Qb6 {[%emt 0:05:30]} 14. Nb5 {[%emt 0:08:30]} Rac8 {[%emt 0:00:30]} 15. Bh3 {[%emt 0:02:30]} Na5 {[%emt 0:08:30]} 16. Qd3 {[%emt 0:03:30]} Ne4 {[%emt 0:02:30]} 17. Nd4 {[%emt 0:05:30]} Nc5 {[%emt 0:05:30]} 18. Qb5 {[%emt 0:01:30]} Rc6 {[%emt 0:08:30]} 19. b4 {[%emt 0:01:30]} Qxb5 {[%emt 0:01:30]} 20. Nxb5 {[%emt 0:00:00]} Rb6 {[%emt 0:00:30]} 21. a4 {[%emt 0:00:00]} Nab3 {[%emt 0:03:30]} 22. bxc5 {[%emt 0:00:30]} 1-0

[Event "CRO-ch Youth U19 2020"]
[Site "Vinkovci"]
[Date "2020.08.01"]
[Round "6.9"]
[White "Jakrlin, Mihael"]
[Black "Alfirevic, Duje"]
[Result "1/2-1/2"]
[ECO "A12"]
[WhiteElo "2183"]
[BlackElo "2011"]
[Annotator "ChessBase"]
[PlyCount "65"]
[EventDate "2020.07.28"]
[EventType "swiss"]
[EventCountry "CRO"]
[TimeControl "5400+30"]

1. Nf3 {[%emt 0:00:30]} d5 {[%emt 0:00:30]} 2. g3 {[%emt 0:00:00]} Bg4 {[%emt 0:00:00]} 3. Bg2 {[%emt 0:00:00]} Nf6 {[%emt 0:00:00]} 4. c4 {[%emt 0:01:30]} c6 {[%emt 0:00:30]} 5. O-O {[%emt 0:01:30]} e6 {[%emt 0:00:30]} 6. b3 {[%emt 0:00:30]} Bd6 {[%emt 0:01:30]} 7. Bb2 {[%emt 0:00:00]} O-O {[%emt 0:00:30]} 8. d3 {[%emt 0:00:00]} Nbd7 {[%emt 0:03:30]} 9. h3 {[%emt 0:01:30]} Bxf3 {[%emt 0:02:30]} 10. Bxf3 {[%emt 0:00:30]} a5 {[%emt 0:04:30]} 11. a3 {[%emt 0:07:30]} dxc4 {[%emt 0:08:30]} 12. dxc4 {[%emt 0:08:30]} Be5 {[%emt 0:01:30]} 13. Nc3 {[%emt 0:02:30]} Qb6 {[%emt 0:16:30]} 14. Kh1 {[%emt 0:06:30]} Rad8 {[%emt 0:07:30]} 15. Qc2 {[%emt 0:00:30]} Bb8 {[%emt 0:00:30]} 16. Rab1 {[%emt 0:10:30]} Qc7 {[%emt 0:02:30]} 17. Ne4 {[%emt 0:09:30]} Nxe4 {[%emt 0:02:30]} 18. Bxe4 {[%emt 0:01:30]} f5 {[%emt 0:00:30]} 19. Qc3 {[%emt 0:04:30]} Nf6 {[%emt 0:03:30]} 20. Bf3 {[%emt 0:05:30]} e5 {[%emt 0:03:30]} 21. e3 {[%emt 0:02:30]} h5 {[%emt 0:02:30]} 22. Rg1 {[%emt 0:02:30]} Rd7 {[%emt 0:03:30]} 23. Qc2 {[%emt 0:01:30]} e4 {[%emt 0:03:30]} 24. Be2 {[%emt 0:00:00]} h4 {[%emt 0:00:30]} 25. Rbd1 {[%emt 0:01:00]} Rxd1 {[%emt 0:01:30]} 26. Bxd1 {[%emt 0:00:30]} hxg3 {[%emt 0:04:30]} 27. fxg3 {[%emt 0:00:30]} Kf7 {[%emt 0:02:30]} 28. Qf2 {[%emt 0:00:00]} Qd7 {[%emt 0:02:30]} 29. Kg2 {[%emt 0:01:00]} Rh8 {[%emt 0:01:30]} 30. Rh1 {[%emt 0:01:30]} Nh5 {[%emt 0:06:26]} 31. g4 {[%emt 0:04:30]} Ng3 {[%emt 0:01:32]} 32. Rg1 {[%emt 0:01:30]} Qd8 {[%emt 0:02:49]} 33. Rh1 {[%emt 0:02:30]} 1/2-1/2

[Event "CRO-ch Youth U19 2020"]
[Site "Vinkovci"]
[Date "2020.07.31"]
[Round "6.11"]
[White "Moric, Ivan"]
[Black "Birkic, Josip"]
[Result "1/2-1/2"]
[ECO "B15"]
[WhiteElo "1726"]
[BlackElo "1984"]
[Annotator "RC"]
[PlyCount "75"]
[EventDate "2020.07.28"]
[EventType "swiss"]
[EventCountry "CRO"]
[SourceTitle "playchess.com"]
[Source "ChessBase"]
[SourceQuality "1"]
[TimeControl "5400+30"]

1. e4 {[%emt 0:00:30]} c6 {[%emt 0:00:30]} 2. d4 {[%emt 0:00:00]} d5 {[%emt 0:00:00]} 3. Nc3 {[%emt 0:00:00]} dxe4 {[%emt 0:00:00]} 4. Nxe4 {[%emt 0:00:30]} Nf6 {[%emt 0:00:00]} 5. Ng3 {[%emt 0:01:30]} Bg4 {[%emt 0:01:00]} 6. Be2 {[%emt 0:09:30]} Bxe2 {[%emt 0:00:00]} 7. N3xe2 {[%emt 0:01:30]} e6 {[%emt 0:02:00]} 8. Nf3 {[%emt 0:01:30]} Bd6 {[%emt 0:00:30]} 9. Bf4 {[%emt 0:02:30]} O-O {[%emt 0:01:30]} 10. O-O {[%emt 0:00:30]} Qc7 {[%emt 0:01:30]} 11. Qd2 {[%emt 0:05:30]} Nbd7 {[%emt 0:06:30]} 12. c4 {[%emt 0:04:30]} Rfd8 {[%emt 0:15:30]} 13. Rad1 {[%emt 0:05:30]} Nf8 {[%emt 0:04:30]} 14. Bxd6 {[%emt 0:02:30]} Rxd6 {[%emt 0:03:30]} 15. Qe3 {[%emt 0:03:30]} Ng6 {[%emt 0:04:30]} 16. Rd3 {[%emt 0:02:30]} Ne7 {[%emt 0:03:30]} 17. Nc3 {[%emt 0:03:30]} Rad8 {[%emt 0:03:30]} 18. Rfd1 {[%emt 0:12:30]} Nf5 {[%emt 0:05:30]} 19. Qf4 {[%emt 0:02:30]} Qc8 {[%emt 0:13:30]} 20. g4 {[%emt 0:01:30]} Ne7 {[%emt 0:01:30]} 21. Ne5 {[%emt 0:02:30]} Ng6 {[%emt 0:02:30]} 22. Nxg6 {[%emt 0:00:30]} hxg6 {[%emt 0:00:00]} 23. g5 {[%emt 0:01:30]} Nh5 {[%emt 0:02:00]} 24. Qg4 {[%emt 0:02:30]} b6 {[%emt 0:03:30]} 25. b4 {[%emt 0:07:30]} c5 {[%emt 0:02:30]} 26. bxc5 {[%emt 0:00:30]} bxc5 {[%emt 0:00:30]} 27. d5 {[%emt 0:01:30]} f5 {[%emt 0:11:00]} 28. gxf6 {[%emt 0:00:30]} Nxf6 {[%emt 0:00:19]} 29. Qxg6 {[%emt 0:01:30]} exd5 {[%emt 0:00:39]} 30. Nb5 {[%emt 0:06:00]} Ra6 {[%emt 0:04:03]} 31. cxd5 {[%emt 0:02:17]} Rxd5 {[%emt 0:02:34]} 32. Rxd5 {[%emt 0:01:23]} Nxd5 {[%emt 0:00:05]} 33. Qe4 {[%emt 0:06:19]} Nf6 {[%emt 0:01:33]} 34. Qc4+ {[%emt 0:00:48]} Kh7 {[%emt 0:02:46]} 35. Qh4+ {[%emt 0:02:59]} Kg8 {[%emt 0:00:08]} 36. Qc4+ {[%emt 0:00:34]} Kh8 {[%emt 0:00:06]} 37. Qh4+ {[%emt 0:00:35]} Kg8 {[%emt 0:00:19]} 38. Qc4+ {[%emt 0:00:14]} 1/2-1/2

[Event "CRO-ch Youth U19 2020"]
[Site "Vinkovci"]
[Date "2020.08.01"]
[Round "6.13"]
[White "Baric, Marko"]
[Black "Purini, Bruno"]
[Result "1/2-1/2"]
[ECO "C78"]
[WhiteElo "1831"]
[BlackElo "2017"]
[Annotator "ChessBase"]
[PlyCount "42"]
[EventDate "2020.07.28"]
[EventType "swiss"]
[EventCountry "CRO"]
[TimeControl "5400+30"]

1. e4 {[%emt 0:00:30]} e5 {[%emt 0:00:30]} 2. Nf3 {[%emt 0:00:30]} Nc6 {[%emt 0:00:00]} 3. Bb5 {[%emt 0:00:00]} a6 {[%emt 0:00:00]} 4. Ba4 {[%emt 0:00:00]} Nf6 {[%emt 0:00:30]} 5. O-O {[%emt 0:00:30]} b5 {[%emt 0:00:30]} 6. Bb3 {[%emt 0:00:00]} Bc5 {[%emt 0:00:30]} 7. Nxe5 {[%emt 0:07:00]} Nxe5 {[%emt 0:02:30]} 8. d4 {[%emt 0:00:30]} Bxd4 {[%emt 0:04:30]} 9. Qxd4 {[%emt 0:00:30]} d6 {[%emt 0:01:30]} 10. Qe3 {[%emt 0:06:30]} c5 {[%emt 0:01:30]} 11. c3 {[%emt 0:04:30]} O-O {[%emt 0:02:30]} 12. f3 {[%emt 0:09:30]} Re8 {[%emt 0:03:30]} 13. Rd1 {[%emt 0:06:30]} Bb7 {[%emt 0:06:30]} 14. Qf2 {[%emt 0:00:30]} Qe7 {[%emt 0:06:30]} 15. Bg5 {[%emt 0:03:30]} Nxe4 {[%emt 0:13:30]} 16. Bxe7 {[%emt 0:01:30]} Nxf2 {[%emt 0:00:30]} 17. Kxf2 {[%emt 0:00:30]} Rxe7 {[%emt 0:00:00]} 18. Rxd6 {[%emt 0:00:30]} Rae8 {[%emt 0:01:00]} 19. Nd2 {[%emt 0:04:30]} Ng6 {[%emt 0:05:30]} 20. Kg3 {[%emt 0:04:30]} Kf8 {[%emt 0:01:30]} 21. Bc2 {[%emt 0:08:30]} Re6 {[%emt 0:04:30]} 1/2-1/2

[Event "CRO-ch Youth U19 2020"]
[Site "Vinkovci"]
[Date "2020.08.01"]
[Round "6.14"]
[White "Juric, Matea"]
[Black "Dasic, Jelena"]
[Result "0-1"]
[ECO "B43"]
[WhiteElo "1559"]
[BlackElo "1814"]
[Annotator "NA"]
[PlyCount "52"]
[EventDate "2020.07.28"]
[EventType "swiss"]
[EventCountry "CRO"]
[TimeControl "5400+30"]

1. e4 {[%emt 0:00:30]} c5 {[%emt 0:02:30]} 2. Nf3 {[%emt 0:00:00]} e6 {[%emt 0:00:00]} 3. d4 {[%emt 0:00:00]} cxd4 {[%emt 0:00:00]} 4. Nxd4 {[%emt 0:00:30]} a6 {[%emt 0:00:00]} 5. a3 {[%emt 0:00:30]} Qc7 {[%emt 0:00:00]} 6. Be2 {[%emt 0:02:30]} Nf6 {[%emt 0:00:30]} 7. Nc3 {[%emt 0:00:30]} b5 {[%emt 0:00:30]} 8. Bg5 {[%emt 0:03:30]} Be7 {[%emt 0:02:30]} 9. Qd2 {[%emt 0:06:30]} d6 {[%emt 0:07:30]} 10. O-O {[%emt 0:05:30]} Nbd7 {[%emt 0:00:00]} 11. Rad1 {[%emt 0:02:30]} Bb7 {[%emt 0:03:00]} 12. f3 {[%emt 0:13:30]} O-O {[%emt 0:03:30]} 13. Kh1 {[%emt 0:07:30]} Ne5 {[%emt 0:07:30]} 14. Nb3 {[%emt 0:13:30]} Nc4 {[%emt 0:01:30]} 15. Bxc4 {[%emt 0:01:30]} bxc4 {[%emt 0:00:00]} 16. Nd4 {[%emt 0:00:30]} Rab8 {[%emt 0:03:00]} 17. Rb1 {[%emt 0:05:30]} Rfd8 {[%emt 0:01:30]} 18. Qe3 {[%emt 0:04:30]} Qc5 {[%emt 0:05:30]} 19. Rfe1 {[%emt 0:01:30]} h6 {[%emt 0:00:30]} 20. Bh4 {[%emt 0:03:30]} Ng4 {[%emt 0:14:30]} 21. fxg4 {[%emt 0:01:30]} Bxh4 {[%emt 0:00:30]} 22. Rf1 {[%emt 0:03:30]} Bf6 {[%emt 0:00:30]} 23. Rxf6 {[%emt 0:09:39]} gxf6 {[%emt 0:00:30]} 24. Qd2 {[%emt 0:02:12]} Qg5 {[%emt 0:00:30]} 25. Qe2 {[%emt 0:01:21]} d5 {[%emt 0:00:30]} 26. exd5 {[%emt 0:04:01]} Bxd5 {[%emt 0:00:30]} 0-1

[Event "CRO-ch Youth U19 2020"]
[Site "Vinkovci"]
[Date "2020.08.01"]
[Round "6.15"]
[White "Vujic, Agata"]
[Black "Smetisko, Marija"]
[Result "0-1"]
[ECO "C24"]
[WhiteElo "1621"]
[BlackElo "1917"]
[Annotator "ChessBase"]
[PlyCount "56"]
[EventDate "2020.07.28"]
[EventType "swiss"]
[EventCountry "CRO"]
[TimeControl "5400+30"]

1. e4 {[%emt 0:02:30]} e5 {[%emt 0:00:30]} 2. Nf3 {[%emt 0:00:30]} d6 {[%emt 0:02:30]} 3. Bc4 {[%emt 0:00:30]} c6 {[%emt 0:01:30]} 4. Nc3 {[%emt 0:00:30]} Be7 {[%emt 0:00:30]} 5. d3 {[%emt 0:01:30]} Nf6 {[%emt 0:01:30]} 6. h3 {[%emt 0:00:30]} Nbd7 {[%emt 0:00:30]} 7. a4 {[%emt 0:00:00]} O-O {[%emt 0:02:30]} 8. O-O {[%emt 0:00:00]} Nc5 {[%emt 0:03:30]} 9. Re1 {[%emt 0:01:30]} Ne6 {[%emt 0:06:30]} 10. Bb3 {[%emt 0:00:30]} h6 {[%emt 0:04:30]} 11. Ne2 {[%emt 0:02:30]} Nh5 {[%emt 0:02:30]} 12. c3 {[%emt 0:00:30]} Nef4 {[%emt 0:08:30]} 13. Nxf4 {[%emt 0:02:30]} Nxf4 {[%emt 0:03:30]} 14. d4 {[%emt 0:02:30]} Ng6 {[%emt 0:12:30]} 15. Bc2 {[%emt 0:04:30]} Qc7 {[%emt 0:01:30]} 16. b3 {[%emt 0:09:30]} Bd7 {[%emt 0:05:30]} 17. Qd3 {[%emt 0:17:30]} Rad8 {[%emt 0:06:30]} 18. d5 {[%emt 0:00:30]} Bf6 {[%emt 0:08:30]} 19. Be3 {[%emt 0:03:30]} cxd5 {[%emt 0:01:30]} 20. exd5 {[%emt 0:00:30]} e4 {[%emt 0:00:30]} 21. Qxe4 {[%emt 0:00:30]} Bxc3 {[%emt 0:00:30]} 22. Qd3 {[%emt 0:01:30]} Bxa1 {[%emt 0:00:30]} 23. Rxa1 {[%emt 0:00:00]} f5 {[%emt 0:01:30]} 24. Qd1 {[%emt 0:02:00]} Qa5 {[%emt 0:06:15]} 25. Bc1 {[%emt 0:03:30]} Ne7 {[%emt 0:04:45]} 26. Ba3 {[%emt 0:01:30]} Qxd5 {[%emt 0:01:55]} 27. Bxd6 {[%emt 0:00:30]} Qe6 {[%emt 0:00:23]} 28. b4 {[%emt 0:01:30]} Bxa4 {[%emt 0:00:39]} 0-1

[Event "CRO-ch Youth U19 2020"]
[Site "Vinkovci"]
[Date "2020.08.01"]
[Round "6.16"]
[White "Muha, Magdalena"]
[Black "Golub, Nikolina"]
[Result "1-0"]
[ECO "E11"]
[WhiteElo "1720"]
[BlackElo "1911"]
[Annotator "ChessBase"]
[PlyCount "119"]
[EventDate "2020.07.28"]
[EventType "swiss"]
[EventCountry "CRO"]
[TimeControl "5400+30"]

1. d4 {[%emt 0:00:30]} Nf6 {[%emt 0:00:30]} 2. c4 {[%emt 0:00:00]} e6 {[%emt 0:00:00]} 3. Nf3 {[%emt 0:00:00]} Bb4+ {[%emt 0:00:00]} 4. Bd2 {[%emt 0:01:30]} a5 {[%emt 0:00:00]} 5. g3 {[%emt 0:04:30]} O-O {[%emt 0:01:00]} 6. Bg2 {[%emt 0:00:30]} d6 {[%emt 0:01:30]} 7. O-O {[%emt 0:01:30]} Bxd2 {[%emt 0:00:00]} 8. Nbxd2 {[%emt 0:05:30]} Nbd7 {[%emt 0:00:00]} 9. e4 {[%emt 0:04:30]} e5 {[%emt 0:02:30]} 10. d5 {[%emt 0:03:30]} Nc5 {[%emt 0:01:30]} 11. Nh4 {[%emt 0:02:30]} Bd7 {[%emt 0:04:30]} 12. Qe2 {[%emt 0:06:30]} g6 {[%emt 0:06:30]} 13. Rae1 {[%emt 0:14:30]} Re8 {[%emt 0:06:30]} 14. f3 {[%emt 0:04:30]} Rb8 {[%emt 0:07:30]} 15. Qf2 {[%emt 0:01:30]} Nd3 {[%emt 0:00:30]} 16. Qe2 {[%emt 0:06:30]} Nxe1 {[%emt 0:00:30]} 17. Qxe1 {[%emt 0:00:30]} c6 {[%emt 0:02:30]} 18. f4 {[%emt 0:04:30]} Qb6+ {[%emt 0:08:30]} 19. Kh1 {[%emt 0:00:30]} exf4 {[%emt 0:09:30]} 20. Rxf4 {[%emt 0:02:30]} Nh5 {[%emt 0:05:30]} 21. Rf2 {[%emt 0:02:30]} Qxb2 {[%emt 0:02:30]} 22. Qf1 {[%emt 0:04:30]} Re7 {[%emt 0:02:30]} 23. Bf3 {[%emt 0:02:30]} Ng7 {[%emt 0:02:30]} 24. Bg2 {[%emt 0:06:37]} Qxa2 {[%emt 0:05:30]} 25. e5 {[%emt 0:02:08]} Qa3 {[%emt 0:08:30]} 26. Ne4 {[%emt 0:01:47]} Ne8 {[%emt 0:03:27]} 27. e6 {[%emt 0:01:58]} Bxe6 {[%emt 0:00:53]} 28. dxe6 {[%emt 0:00:13]} f5 {[%emt 0:05:45]} 29. Nxf5 {[%emt 0:01:46]} gxf5 {[%emt 0:02:53]} 30. Rxf5 {[%emt 0:00:01]} Ng7 {[%emt 0:00:17]} 31. Rf3 {[%emt 0:03:54]} Qb4 {[%emt 0:01:13]} 32. Nf6+ {[%emt 0:00:06]} Kh8 {[%emt 0:00:28]} 33. Nd5 {[%emt 0:01:43]} Nxe6 {[%emt 0:00:07]} 34. Nxb4 {[%emt 0:00:13]} axb4 {[%emt 0:00:01]} 35. Qa1+ {[%emt 0:00:37]} Kg8 {[%emt 0:00:53]} 36. Qf6 {[%emt 0:00:38]} Rbe8 {[%emt 0:00:02]} 37. Rf5 {[%emt 0:01:32]} Ng7 {[%emt 0:01:04]} 38. Rf1 {[%emt 0:01:56]} b3 {[%emt 0:01:41]} 39. Be4 {[%emt 0:01:40]} b2 {[%emt 0:01:18]} 40. Kg2 {[%emt 0:01:03]} Ne6 {[%emt 0:03:19]} 41. Bb1 {[%emt 0:03:14]} Ng7 {[%emt 0:02:25]} 42. Kh3 {[%emt 0:00:10]} Ne6 {[%emt 0:01:54]} 43. Kg2 {[%emt 0:00:40]} Ng7 {[%emt 0:00:05]} 44. Qh6 {[%emt 0:02:00]} Ne6 {[%emt 0:00:41]} 45. Rf3 {[%emt 0:01:04]} Nf8 {[%emt 0:00:59]} 46. Qg5+ {[%emt 0:01:03]} Rg7 {[%emt 0:01:30]} 47. Qf6 {[%emt 0:00:37]} Nd7 {[%emt 0:00:34]} 48. Qxb2 {[%emt 0:00:41]} Ne5 {[%emt 0:00:11]} 49. Rf4 {[%emt 0:00:28]} Rge7 {[%emt 0:00:15]} 50. Qc2 {[%emt 0:00:40]} Ng6 {[%emt 0:00:10]} 51. Rf2 {[%emt 0:00:06]} Re5 {[%emt 0:00:30]} 52. Qb2 {[%emt 0:00:25]} R8e7 {[%emt 0:00:15]} 53. Qa2 {[%emt 0:00:11]} Kg7 {[%emt 0:00:44]} 54. Qd2 {[%emt 0:00:18]} d5 {[%emt 0:00:48]} 55. cxd5 {[%emt 0:00:09]} Rxd5 {[%emt 0:00:20]} 56. Qb2+ {[%emt 0:00:14]} Ne5 {[%emt 0:01:21]} 57. Ba2 {[%emt 0:00:29]} Rb5 {[%emt 0:00:26]} 58. Qd4 {[%emt 0:00:25]} h6 {[%emt 0:01:07]} 59. Qd8 {[%emt 0:00:16]} Ng6 {[%emt 0:00:23]} 60. Qg8# {[%emt 0:02:25]} 1-0

[Event "CRO-ch Youth U19 2020"]
[Site "Vinkovci"]
[Date "2020.08.01"]
[Round "7.9"]
[White "Moric, Ivan"]
[Black "Jakrlin, Mihael"]
[Result "1-0"]
[ECO "B03"]
[WhiteElo "1726"]
[BlackElo "2183"]
[Annotator "ChessBase"]
[PlyCount "105"]
[EventDate "2020.07.28"]
[EventType "swiss"]
[EventCountry "CRO"]
[SourceTitle "playchess.com"]
[Source "ChessBase"]
[SourceQuality "1"]
[TimeControl "5400+30"]

1. e4 {[%emt 0:00:30]} Nf6 {[%emt 0:02:30]} 2. e5 {[%emt 0:00:00]} Nd5 {[%emt 0:00:00]} 3. d4 {[%emt 0:00:00]} d6 {[%emt 0:00:00]} 4. Nf3 {[%emt 0:00:30]} Bg4 {[%emt 0:00:30]} 5. Bc4 {[%emt 0:01:30]} c6 {[%emt 0:00:30]} 6. Nc3 {[%emt 0:07:30]} dxe5 {[%emt 0:00:30]} 7. dxe5 {[%emt 0:02:30]} e6 {[%emt 0:00:30]} 8. Bxd5 {[%emt 0:07:30]} cxd5 {[%emt 0:00:30]} 9. O-O {[%emt 0:01:30]} Nc6 {[%emt 0:00:30]} 10. Re1 {[%emt 0:03:30]} Bb4 {[%emt 0:01:30]} 11. Bd2 {[%emt 0:08:30]} a6 {[%emt 0:00:30]} 12. h3 {[%emt 0:07:30]} Bh5 {[%emt 0:00:30]} 13. g4 {[%emt 0:00:30]} Bg6 {[%emt 0:00:00]} 14. Ne2 {[%emt 0:00:30]} Be7 {[%emt 0:03:00]} 15. c3 {[%emt 0:02:30]} O-O {[%emt 0:00:30]} 16. Ned4 {[%emt 0:03:30]} Na5 {[%emt 0:02:30]} 17. Qe2 {[%emt 0:02:30]} Nc4 {[%emt 0:04:30]} 18. Bc1 {[%emt 0:03:30]} Qc7 {[%emt 0:01:30]} 19. Nd2 {[%emt 0:00:30]} b5 {[%emt 0:04:30]} 20. f4 {[%emt 0:00:30]} Nxd2 {[%emt 0:04:30]} 21. Bxd2 {[%emt 0:00:30]} Be4 {[%emt 0:00:30]} 22. Qh2 {[%emt 0:08:30]} b4 {[%emt 0:06:30]} 23. Rac1 {[%emt 0:06:30]} bxc3 {[%emt 0:03:30]} 24. Rxc3 {[%emt 0:00:00]} Bc5 {[%emt 0:20:30]} 25. Be3 {[%emt 0:02:00]} Qb6 {[%emt 0:00:30]} 26. Qf2 {[%emt 0:09:30]} Rac8 {[%emt 0:11:30]} 27. Rec1 {[%emt 0:01:30]} Bxd4 {[%emt 0:00:30]} 28. Bxd4 {[%emt 0:01:04]} Rxc3 {[%emt 0:01:30]} 29. Rxc3 {[%emt 0:01:00]} Qb5 {[%emt 0:00:30]} 30. f5 {[%emt 0:06:26]} exf5 {[%emt 0:14:27]} 31. gxf5 {[%emt 0:00:08]} Qd7 {[%emt 0:00:05]} 32. f6 {[%emt 0:02:41]} Qe6 {[%emt 0:01:10]} 33. Qg3 {[%emt 0:02:26]} Bg6 {[%emt 0:00:10]} 34. h4 {[%emt 0:00:39]} h5 {[%emt 0:00:43]} 35. Qg5 {[%emt 0:02:11]} Re8 {[%emt 0:02:28]} 36. fxg7 {[%emt 0:02:14]} Kxg7 {[%emt 0:00:10]} 37. Rb3 {[%emt 0:01:59]} Qg4+ {[%emt 0:03:19]} 38. Qxg4 {[%emt 0:00:13]} hxg4 {[%emt 0:00:02]} 39. e6+ {[%emt 0:00:20]} f6 {[%emt 0:02:48]} 40. Rb7+ {[%emt 0:00:12]} Kh6 {[%emt 0:00:08]} 41. Rb6 {[%emt 0:01:56]} f5 {[%emt 0:00:31]} 42. Kf2 {[%emt 0:00:44]} Kh5 {[%emt 0:00:52]} 43. Kg3 {[%emt 0:00:42]} Rf8 {[%emt 0:01:06]} 44. Kf4 {[%emt 0:00:39]} Kxh4 {[%emt 0:01:29]} 45. e7 {[%emt 0:00:13]} Re8 {[%emt 0:01:18]} 46. Rxg6 {[%emt 0:00:11]} Kh5 {[%emt 0:00:14]} 47. Kxf5 {[%emt 0:01:02]} Rxe7 {[%emt 0:00:27]} 48. Rg7 {[%emt 0:01:06]} Rxg7 {[%emt 0:00:47]} 49. Bxg7 {[%emt 0:00:05]} g3 {[%emt 0:00:06]} 50. Bd4 {[%emt 0:00:10]} a5 {[%emt 0:00:22]} 51. Ke5 {[%emt 0:00:11]} a4 {[%emt 0:00:07]} 52. Kxd5 {[%emt 0:00:13]} a3 {[%emt 0:00:04]} 53. bxa3 {[%emt 0:00:11]} 1-0

[Event "CRO-ch Youth U19 2020"]
[Site "Vinkovci"]
[Date "2020.08.01"]
[Round "7.11"]
[White "Alfirevic, Duje"]
[Black "Baric, Marko"]
[Result "0-1"]
[ECO "B77"]
[WhiteElo "2011"]
[BlackElo "1831"]
[Annotator "ChessBase"]
[PlyCount "88"]
[EventDate "2020.07.28"]
[EventType "swiss"]
[EventCountry "CRO"]
[SourceTitle "playchess.com"]
[Source "ChessBase"]
[SourceQuality "1"]
[TimeControl "5400+30"]

1. e4 {[%emt 0:00:30]} c5 {[%emt 0:00:30]} 2. Nf3 {[%emt 0:00:00]} Nc6 {[%emt 0:00:00]} 3. d4 {[%emt 0:00:00]} cxd4 {[%emt 0:00:00]} 4. Nxd4 {[%emt 0:00:00]} g6 {[%emt 0:00:00]} 5. Nc3 {[%emt 0:00:00]} Bg7 {[%emt 0:00:00]} 6. Be3 {[%emt 0:00:30]} Nf6 {[%emt 0:00:30]} 7. Bc4 {[%emt 0:00:00]} O-O {[%emt 0:00:00]} 8. Bb3 {[%emt 0:00:00]} d6 {[%emt 0:00:00]} 9. f3 {[%emt 0:00:30]} Bd7 {[%emt 0:00:30]} 10. Qd2 {[%emt 0:00:00]} Nxd4 {[%emt 0:00:30]} 11. Bxd4 {[%emt 0:00:00]} b5 {[%emt 0:01:30]} 12. h4 {[%emt 0:10:30]} a5 {[%emt 0:01:30]} 13. h5 {[%emt 0:05:30]} e5 {[%emt 0:20:30]} 14. Be3 {[%emt 0:15:30]} a4 {[%emt 0:06:30]} 15. Bd5 {[%emt 0:03:30]} Nxd5 {[%emt 0:00:30]} 16. Nxd5 {[%emt 0:00:30]} Be6 {[%emt 0:19:30]} 17. Bh6 {[%emt 0:17:30]} Bxd5 {[%emt 0:04:30]} 18. Bxg7 {[%emt 0:01:30]} Kxg7 {[%emt 0:00:00]} 19. hxg6 {[%emt 0:04:30]} hxg6 {[%emt 0:00:00]} 20. Qxd5 {[%emt 0:05:30]} Qg5 {[%emt 0:04:30]} 21. Qd2 {[%emt 0:01:30]} Qg3+ {[%emt 0:03:30]} 22. Qf2 {[%emt 0:00:30]} Qxf2+ {[%emt 0:00:30]} 23. Kxf2 {[%emt 0:00:00]} Rac8 {[%emt 0:02:30]} 24. Rac1 {[%emt 0:02:00]} Rc5 {[%emt 0:02:30]} 25. a3 {[%emt 0:02:30]} d5 {[%emt 0:02:30]} 26. exd5 {[%emt 0:01:30]} Rxd5 {[%emt 0:00:30]} 27. Rhd1 {[%emt 0:01:30]} Rfd8 {[%emt 0:01:30]} 28. Rxd5 {[%emt 0:05:30]} Rxd5 {[%emt 0:00:00]} 29. Ke2 {[%emt 0:00:30]} f5 {[%emt 0:04:00]} 30. b3 {[%emt 0:00:30]} axb3 {[%emt 0:02:30]} 31. cxb3 {[%emt 0:00:30]} Kf6 {[%emt 0:00:30]} 32. a4 {[%emt 0:03:30]} bxa4 {[%emt 0:01:30]} 33. bxa4 {[%emt 0:00:30]} Kg5 {[%emt 0:03:32]} 34. g3 {[%emt 0:03:03]} e4 {[%emt 0:08:20]} 35. fxe4 {[%emt 0:03:00]} fxe4 {[%emt 0:00:34]} 36. Ke3 {[%emt 0:08:40]} Kf5 {[%emt 0:01:09]} 37. Rc3 {[%emt 0:01:06]} Ra5 {[%emt 0:05:30]} 38. Ra3 {[%emt 0:01:52]} Ke5 {[%emt 0:00:41]} 39. g4 {[%emt 0:01:02]} Ra7 {[%emt 0:01:53]} 40. a5 {[%emt 0:01:19]} Rh7 {[%emt 0:00:12]} 41. Kf2 {[%emt 0:02:37]} Kf4 {[%emt 0:01:09]} 42. Rg3 {[%emt 0:01:14]} Rh2+ {[%emt 0:00:17]} 43. Rg2 {[%emt 0:00:05]} e3+ {[%emt 0:02:20]} 44. Kg1 {[%emt 0:00:02]} e2 {[%emt 0:00:53]} 0-1